Cogmind - Beta 13 @@@ ROGUE MODE // 2024.05.07 @ 17:04:07 Player: Gabe+Kate4EVR Result: Destroyed by B-75 Beast with Magnetic Acceleration Cannon Performance ------------- Evolutions (4) 2000 Regions Visited (9) 1800 Robots Destroyed (74) 370 Value Destroyed (1853) 1853 Prototype IDs (8) 160 Alien Tech Used (0) 0 Bonus (-116) -116 TOTAL SCORE: 6067 Bonus ------- Friendly Fire -116 Cogmind --------- Core Integrity 0/850 Matter 300/300 Energy 150/150 System Corruption 4% Temperature Cool (12) Movement Walking (190) Ox1 Location -5/Proximity Caves Parts ------- > --- POWER (2) -------- Micro Fission Core > --- PROPULSION (7) --- Titanium Leg Improved VSS Leg Improved Flight Unit > --- UTILITY (4) ------ Coolant Injector Large Storage Unit Melee Analysis Suite > --- WEAPON (2) ------- Great Axe Great Axe > --- INVENTORY (15) --- Improved Heat Sink High-capacity Matter Pod (200) Reaction Control System Phase Shifter Cloaking Device Hacking Suite Improved System Shield Gauss Rifle Flamer Molecular Deconstructor Great Axe Power Sword Peak State ------------ > --- POWER ------------ Nuclear Core Micro Nuclear Core > --- PROPULSION ------- Flight Unit Improved Flight Unit Improved VTOL Module Improved VTOL Module Xenon Bombardment Thruster Nuclear Pulse Thruster Nuclear Pulse Thruster > --- UTILITY ---------- Improved Cryofiber Web Advanced Heat Sink Large Storage Unit Propulsion Shielding > --- WEAPON ----------- Molecular Deconstructor > --- INVENTORY -------- Deuterium Engine Flight Unit Xenon Bombardment Thruster Improved Cryofiber Web Coolant Injector High-capacity Matter Pod Reaction Control System Phase Shifter Cloaking Device Hacking Suite Improved System Shield Great Axe Great Axe Great Axe Power Sword [Rating: 68] Favorites ----------- Power Nuclear Core Engine Heavy Ion Engine Power Core Nuclear Core Propulsion Light Treads Treads Light Treads Leg Aluminum Leg Wheel Wheel Flight Unit Improved Flight Unit Utility Large Storage Unit Device Coolant Injector Storage Large Storage Unit Processor Melee Analysis Suite Protection Light Armor Plating Weapon Great Axe Energy Gun Small Laser Energy Cannon Particle Cannon Ballistic Gun Assault Rifle Ballistic Cannon Light Cannon Special Weapon Molecular Deconstructor Slashing Weapon Great Axe Build | -11 -10 -9 -8 -7 -6 -6 -6 -6 -5 ------- Run | Yrd Mat Mat Mat Fac Fac Low Low Zio Pro Slots Evolved 8 | . . 2 2 2 2 . . . . Power 1 | . . . . 1 . . . . . Propulsion 5 | . . 2 2 . 1 . . . . Utility 2 | . . . . 1 1 . . . . Weapon . | . . . . . . . . . . Parts Attached 149 | 6 13 43 16 22 22 21 4 . 2 Power 31 | 1 3 7 1 7 6 4 1 . 1 Engine 19 | 1 3 6 1 4 1 2 1 . . Core 12 | . . 1 . 3 5 2 . . 1 Reactor . | . . . . . . . . . . Propulsion 60 | 2 3 22 12 4 8 7 1 . 1 Treads 16 | 2 3 7 2 . . 2 . . . Leg 14 | . . 9 1 . . 3 1 . . Wheel 1 | . . 1 . . . . . . . Hover . | . . . . . . . . . . Flight 29 | . . 5 9 4 8 2 . . 1 Utility 38 | 1 4 9 1 10 7 4 2 . . Device 17 | . . 3 1 5 5 2 1 . . Storage 7 | 1 2 3 . . . 1 . . . Processor 6 | . . 3 . 2 . 1 . . . Hackware . | . . . . . . . . . . Protection 8 | . 2 . . 3 2 . 1 . . Artifact . | . . . . . . . . . . Weapon 20 | 2 3 5 2 1 1 6 . . . Energy Gun 3 | . . 2 1 . . . . . . Energy Cannon 3 | . 1 2 . . . . . . . Ballistic Gun 4 | 2 . 1 . . . 1 . . . Ballistic Cannon 3 | . 2 . 1 . . . . . . Launcher . | . . . . . . . . . . Special Weapon 2 | . . . . . . 2 . . . Impact Weapon . | . . . . . . . . . . Slashing Weapon 5 | . . . . 1 1 3 . . . Piercing Weapon . | . . . . . . . . . . Special Melee Weapon . | . . . . . . . . . . Unidentified Prototypes 8 | . . 4 3 . . 1 . . . Parts Lost 35 | . . 2 5 . 7 12 4 . 5 Power 6 | . . 1 . . 1 1 1 . 2 Propulsion 20 | . . . 4 . 3 8 3 . 2 Utility 7 | . . . . . 3 3 . . 1 Weapon 2 | . . 1 1 . . . . . . Highest Loss Streak 11 | . . 1 2 . 5 11 4 . 4 To Critical Strikes 2 | . . . . . 1 . 1 . . Average Slot Usage (%) 84 | . 98 94 82 82 88 70 72 80 80 Engine 7 | . 14 9 9 6 . 3 . 6 1 Core 3 | . . . . 4 12 6 6 6 10 Treads 9 | . 27 12 16 . . 2 . . . Leg 11 | . . 25 3 . . 6 17 20 19 Flight 12 | . . . 21 45 46 20 6 6 9 Device 6 | . . 7 3 9 10 9 8 6 6 Storage 10 | . 14 11 9 7 6 10 8 6 6 Processor 2 | . . 2 5 1 4 . 6 6 6 Protection 3 | . 13 . . 3 2 1 1 6 4 Energy Gun 3 | . . 8 6 3 . . . . . Energy Cannon 2 | . 6 3 3 . . . . . . Ballistic Gun 1 | . 7 . 2 . . 1 . . . Ballistic Cannon 5 | . 14 9 2 . . . . . . Slashing Weapon 3 | . . . . . 3 4 13 13 13 Naked Turns . | . . . . . . . . . . Heaviest Build 94 | 13 34 94 36 38 40 50 47 47 47 Greatest Support 83 | 40 40 83 83 36 45 50 52 52 52 Greatest Overweight (x) 9 | . . 9 1 1 1 2 1 . 1 Average Overweight (x) . | . . . . . . . . . . Largest Inventory Capacity 25 | 8 15 25 15 15 15 15 15 15 15 Average Capacity 14 | 7 9 15 15 15 15 15 15 15 15 Most Carried 16 | 6 15 16 15 15 15 15 15 15 15 Average Carried 13 | 3 9 14 14 13 14 12 14 15 13 Final Capacity 15 | 8 15 15 15 15 15 15 15 15 15 Final Carried 15 | 6 15 15 14 15 14 15 15 15 13 Class Distribution -------------------- 48% | Mutant 19% | Scavenger-Mutant 15% | Sprinter 14% | Gladiator Dominant Class ---------------- Mutant | -10/Materials Scavenger-Mutant | -9/Materials Mutant | -8/Materials Sprinter | -7/Factory Sprinter | -6/Factory Mutant | -6/Lower Caves Gladiator | -6/Lower Caves Gladiator | -6/Zion Scavenger-Gladiator | -5/Proximity Caves Resources | -11 -10 -9 -8 -7 -6 -6 -6 -6 -5 ----------- Run | Yrd Mat Mat Mat Fac Fac Low Low Zio Pro Matter Collected 2762 | 244 446 972 235 296 96 396 54 23 . Remotely . | . . . . . . . . . . Salvage Created 2753 | . 729 1161 416 59 28 214 116 30 . Parts 159 | . 61 56 15 2 4 12 8 1 . Haulers Intercepted 10 | . 1 5 3 1 . . . . . Recyclers Shooed 5 | . 2 3 . . . . . . . Parts Field Recycled . | . . . . . . . . . . Retrieved Matter . | . . . . . . . . . . Parts Self-Destructed 29 | . . . . . . 21 8 . . Prevented 1 | . . . . . . . . . 1 Kills | -11 -10 -9 -8 -7 -6 -6 -6 -6 -5 ------- Run | Yrd Mat Mat Mat Fac Fac Low Low Zio Pro Combat Hostiles Destroyed 46 | . 16 18 5 . . 5 2 . . Melee 7 | . . . . . . 5 2 . . Guns 6 | . 1 4 1 . . . . . . Cannons 33 | . 15 14 4 . . . . . . Classes Destroyed 14 | . 8 2 1 . 1 1 . 1 . Builder 2 | . 1 1 . . . . . . . Tunneler 1 | . 1 . . . . . . . . Hauler 10 | . 1 5 3 1 . . . . . Recycler 6 | . 2 4 . . . . . . . Mechanic 3 | . 1 1 1 . . . . . . Operator 1 | . . . . . 1 . . . . Watcher 5 | . 3 1 1 . . . . . . Swarmer 12 | . 6 3 . . . 3 . . . Grunt 22 | . 10 11 1 . . . . . . Duelist 1 | . . 1 . . . . . . . Sentry 7 | . . 3 3 . . 1 . . . Specialist 1 | . . . . . . 1 . . . Hunter 3 | . . . 1 . . . 2 . . Tinkerer 1 | . . . . . . . . 1 . Best Kill Streak 5 | . 4 5 3 1 1 3 5 . . Combat Bots Only 5 | . 4 3 2 . . 3 5 . . Max Kills in Single Turn 2 | . 2 1 1 1 1 1 1 1 . Gunslinging . | . . . . . . . . . . Exploded . | . . . . . . . . . . Melee 1 | . . . . . . 1 1 . . Uniques/NPCs Destroyed . | . . . . . . . . . . Combat | -11 -10 -9 -8 -7 -6 -6 -6 -6 -5 -------- Run | Yrd Mat Mat Mat Fac Fac Low Low Zio Pro Hostile Shots Fired 551 | . 70 48 97 12 125 129 31 . 39 Missed 180 | . 13 9 18 5 65 49 7 . 14 Damage Taken 5450 | . 591 569 1211 104 806 1316 420 . 433 Core 1226 | . 48 102 205 18 198 575 14 . 66 Absorbed by Shields 101 | . . . . . 101 . . . . Redirected to Shielding 46 | . . . . . 39 7 . . . Regen/Repaired (Parts) 226 | . 72 15 23 116 . . . . . Core Remaining (%) 82 | 100 80 74 62 97 . . . . . Volleys Fired 191 | . 50 85 48 2 . 6 . . . Largest 2 | . 2 2 2 1 . 1 . . . Hottest 123 | . 80 108 123 55 . . . . . Shots Fired 360 | . 100 159 93 2 . 6 . . . Gun 115 | . 19 49 45 2 . . . . . Cannon 239 | . 81 110 48 . . . . . . Launcher . | . . . . . . . . . . Special 6 | . . . . . . 6 . . . Kinetic 214 | . 81 90 43 . . . . . . Thermal 140 | . 19 69 50 2 . . . . . Explosive . | . . . . . . . . . . Electromagnetic . | . . . . . . . . . . Robot Hit Streak 14 | . 7 12 14 3 . 4 . . . Robot Miss Streak 5 | . 5 4 3 . . . . . . Penetration Max . | . . . . . . . . . . Secondary Targets . | . . . . . . . . . . Shots Hit Robots 228 | . 50 92 64 2 1 11 7 1 . Core Hits 93 | . 28 39 16 1 1 4 4 . . Critical Kills . | . . . . . . . . . . Critical Parts Destroyed . | . . . . . . . . . . Critical Strikes 7 | . 2 2 . . . 1 2 . . Blast 4 | . 2 2 . . . . . . . Sever 3 | . . . . . . 1 2 . . Melee Attacks 24 | . . . . . 2 13 8 1 . Impact . | . . . . . . . . . . Slashing 24 | . . . . . 2 13 8 1 . Piercing . | . . . . . . . . . . Sneak Attacks 1 | . . . . . . . . 1 . Combat Hostiles . | . . . . . . . . . . Follow-up Attacks 1 | . . . . . . 1 . . . Damage Inflicted 4527 | . 895 1544 1204 36 53 412 287 96 . Guns 983 | . 114 310 523 36 . . . . . Cannons 2652 | . 775 1196 681 . . . . . . Explosions 20 | . . 20 . . . . . . . Melee 841 | . . . . . 53 405 287 96 . Ramming 31 | . 6 18 . . . 7 . . . Kinetic 2004 | . 626 885 493 . . . . . . Thermal 1631 | . 263 621 711 36 . . . . . Explosive . | . . . . . . . . . . Electromagnetic 20 | . . 20 . . . . . . . Impact . | . . . . . . . . . . Slashing 841 | . . . . . 53 405 287 96 . Piercing . | . . . . . . . . . . Highest Corruption 4 | . . . . . . 4 4 4 4 Average Corruption 3 | . . . . . . 3 4 4 4 Corruption Purged . | . . . . . . . . . . Corruption Blocked . | . . . . . . . . . . Effects 48 | . . . . . . 27 15 4 2 Message Errors 16 | . . . . . . 8 6 1 1 Matter Fused 12 | . . . . . . 8 3 1 . Heat Flow Errors 5 | . . . . . . 2 1 2 . Energy Discharges 7 | . . . . . . 4 3 . . Data Loss (minor) 5 | . . . . . . 3 2 . . Data Loss (major) 2 | . . . . . . 1 . . 1 Alerts 1 | . . . . . . 1 . . . Overload Shots . | . . . . . . . . . . Overflow Damage 123 | . . 9 . . . 37 6 71 . Projectiles 9 | . . 9 . . . . . . . Explosions . | . . . . . . . . . . Melee 114 | . . . . . . 37 6 71 . Knockbacks 17 | . 6 11 . . . . . . . Impact . | . . . . . . . . . . Kinetic 16 | . 5 11 . . . . . . . Secondary 1 | . 1 . . . . . . . . Self-Inflicted Damage 39 | . . 36 . . . 3 . . . Shots 1 | . . 1 . . . . . . . Rammed 4 | . 1 . . . . 3 . . . Targets Rammed 7 | . 1 3 . . . 3 . . . Kicked 3 | . . 3 . . . . . . . Crushed . | . . . . . . . . . . Highest Temperature 593 | . 210 168 273 335 593 325 108 137 261 Average Temperature 93 | . 65 38 81 116 246 114 59 66 114 Received Heat Transfer 1485 | . 216 195 468 . 81 123 . . 402 Effects 11 | . . . 2 3 6 . . . . Shutdowns 1 | . . . . 1 . . . . . Energy Bleed 2 | . . . . . 2 . . . . Interference 3 | . . . 2 . 1 . . . . Matter Decay 2 | . . . . 1 1 . . . . Short Circuit 1 | . . . . . 1 . . . . Damage (minor) 2 | . . . . 1 1 . . . . Siege Activations . | . . . . . . . . . . Robots Corrupted . | . . . . . . . . . . Combat Hostiles . | . . . . . . . . . . Parts Fried . | . . . . . . . . . . Impact Corruptions . | . . . . . . . . . . Robots Melted . | . . . . . . . . . . Combat Hostiles . | . . . . . . . . . . Parts Melted 2 | . 1 . 1 . . . . . . Heat Transferred 3179 | . 555 1255 1295 74 . . . . . Parts Sabotaged . | . . . . . . . . . . Parts Stolen . | . . . . . . . . . . Parts Stripped . | . . . . . . . . . . Power Chain Reactions . | . . . . . . . . . . Alert | -11 -10 -9 -8 -7 -6 -6 -6 -6 -5 ------- Run | Yrd Mat Mat Mat Fac Fac Low Low Zio Pro Peak Influence 392 | . 204 350 276 216 392 . . . . Initial 112 | . . 85 94 29 112 . . . . Average 150 | . 81 197 163 80 215 . . . . Maximum Alert Level 1 | . 1 1 1 1 1 . . . . Low Security (%) 65 | 100 88 51 60 88 45 . . . . Level 1 34 | . 11 48 39 11 54 . . . . Level 2 . | . . . . . . . . . . Level 3 . | . . . . . . . . . . Level 4 . | . . . . . . . . . . Level 5 . | . . . . . . . . . . High Security . | . . . . . . . . . . Max Security . | . . . . . . . . . . Squads Dispatched 12 | . 4 3 2 2 1 . . . . Investigation 7 | . 2 2 2 1 . . . . . Extermination . | . . . . . . . . . . Reinforcement 5 | . 2 1 . 1 1 . . . . Assault . | . . . . . . . . . . Garrison . | . . . . . . . . . . Intercept . | . . . . . . . . . . Searches Triggered . | . . . . . . . . . . Construction Impeded . | . . . . . . . . . . Haulers Reinforced . | . . . . . . . . . . Active Scanning Responses . | . . . . . . . . . . Cargo Convoy Interrupts . | . . . . . . . . . . Stealth | -11 -10 -9 -8 -7 -6 -6 -6 -6 -5 --------- Run | Yrd Mat Mat Mat Fac Fac Low Low Zio Pro Distress Signals 7 | . 1 4 2 . . . . . . Communications Jammed . | . . . . . . . . . . Distress Signals . | . . . . . . . . . . Times Spotted 123 | . 22 24 22 10 21 21 2 . 1 Peak Tracking Total 11 | . 3 3 8 7 11 7 2 . 1 Tactical Retreats 22 | . 1 1 3 3 7 7 . . . Traps | -11 -10 -9 -8 -7 -6 -6 -6 -6 -5 ------- Run | Yrd Mat Mat Mat Fac Fac Low Low Zio Pro Traps Triggered 11 | . 4 3 . 1 3 . . . . Indirectly . | . . . . . . . . . . Trap Hack Attempts . | . . . . . . . . . . Triggered . | . . . . . . . . . . Disarmed . | . . . . . . . . . . Reprogrammed . | . . . . . . . . . . Reused . | . . . . . . . . . . Traps Extracted . | . . . . . . . . . . Installed . | . . . . . . . . . . Triggered 1 | . . . . . . . . . 1 Machines | -11 -10 -9 -8 -7 -6 -6 -6 -6 -5 ---------- Run | Yrd Mat Mat Mat Fac Fac Low Low Zio Pro Machines Disabled 6 | . 1 3 . . 1 1 . . . Max in Single Turn 2 | . 1 2 . . 1 1 . . . Machines Repaired . | . . . . . . . . . . Machines Dismantled . | . . . . . . . . . . Machines Sabotaged . | . . . . . . . . . . Overloaded Fab Kills . | . . . . . . . . . . Hacking | -11 -10 -9 -8 -7 -6 -6 -6 -6 -5 --------- Run | Yrd Mat Mat Mat Fac Fac Low Low Zio Pro Machines Accessed 18 | . 2 4 3 3 4 2 . . . Terminals 10 | . 1 2 2 1 4 . . . . Fabricators 1 | . . . . 1 . . . . . Repair Stations 4 | . 1 1 1 1 . . . . . Recycling Units . | . . . . . . . . . . Scanalyzers 1 | . . 1 . . . . . . . Garrison Access . | . . . . . . . . . . Total Hacks 44 | . 7 8 9 7 7 6 . . . Successful 21 | . 3 4 4 4 . 6 . . . Failed 23 | . 4 4 5 3 7 . . . . Catastrophic 8 | . 1 1 1 2 3 . . . . Database Lockouts . | . . . . . . . . . . Manual 19 | . 4 4 3 1 6 1 . . . Terminals 20 | . 4 4 3 2 7 . . . . Fabricators 1 | . . . . 1 . . . . . Repair Stations 15 | . 3 2 6 4 . . . . . Recycling Units . | . . . . . . . . . . Scanalyzers 2 | . . 2 . . . . . . . Garrison Access . | . . . . . . . . . . Terminal Hacks 8 | . 1 . 1 . . 6 . . . Record 5 | . . . . . . 5 . . . Open Door 1 | . . . . . . 1 . . . Unreport Threat 2 | . 1 . 1 . . . . . . Fabricator Hacks . | . . . . . . . . . . Repair Station Hacks 11 | . 2 2 3 4 . . . . . Scan Component 6 | . 1 1 2 2 . . . . . Repair 5 | . 1 1 1 2 . . . . . Recycling Unit Hacks . | . . . . . . . . . . Scanalyzer 2 | . . 2 . . . . . . . Insert Component 1 | . . 1 . . . . . . . Analyze 1 | . . 1 . . . . . . . Garrison Access Hacks . | . . . . . . . . . . Unauthorized Hacks . | . . . . . . . . . . Terminals . | . . . . . . . . . . Fabricators . | . . . . . . . . . . Repair Stations . | . . . . . . . . . . Recycling Units . | . . . . . . . . . . Scanalyzers . | . . . . . . . . . . Garrison Access . | . . . . . . . . . . Data Cores Recovered . | . . . . . . . . . . Used . | . . . . . . . . . . Hacking Detections 14 | . 1 3 3 3 4 . . . . Full Trace Events 4 | . 1 . 2 1 . . . . . Feedback Events . | . . . . . . . . . . Feedback Blocked . | . . . . . . . . . . Robot Schematics Acquired . | . . . . . . . . . . Robots Built . | . . . . . . . . . . Authchips . | . . . . . . . . . . Time . | . . . . . . . . . . Total Robot Build Rating . | . . . . . . . . . . Part Schematics Acquired 1 | . . 1 . . . . . . . Parts Built . | . . . . . . . . . . Authchips . | . . . . . . . . . . Time . | . . . . . . . . . . Total Part Build Rating . | . . . . . . . . . . Parts Repaired 5 | . 1 1 1 2 . . . . . Time 168 | . 26 26 26 90 . . . . . Parts Recycled . | . . . . . . . . . . Recycled Matter . | . . . . . . . . . . Retrieved Matter . | . . . . . . . . . . Retrieved Components . | . . . . . . . . . . Parts Scanalyzed 1 | . . 1 . . . . . . . Part Schematics Acquired 1 | . . 1 . . . . . . . Parts Damaged . | . . . . . . . . . . Bothacking | -11 -10 -9 -8 -7 -6 -6 -6 -6 -5 ------------ Run | Yrd Mat Mat Mat Fac Fac Low Low Zio Pro Used RIF Installer . | . . . . . . . . . . Robots Hacked . | . . . . . . . . . . Non-combat . | . . . . . . . . . . Combat . | . . . . . . . . . . Robot Hacks Applied . | . . . . . . . . . . Relay Couplers Released . | . . . . . . . . . . Fabnet Peak Effective % . | . . . . . . . . . . Robots Rewired . | . . . . . . . . . . Allies Hacked . | . . . . . . . . . . Hacks Repelled . | . . . . . . . . . . Allies | -11 -10 -9 -8 -7 -6 -6 -6 -6 -5 -------- Run | Yrd Mat Mat Mat Fac Fac Low Low Zio Pro Total Allies . | . . . . . . . . . . Largest Group . | . . . . . . . . . . Highest-Rated Group . | . . . . . . . . . . Highest-Rated Ally . | . . . . . . . . . . Total Orders 1 | . . . . . . . 1 . . EXPLORE 1 | . . . . . . . 1 . . Ally Attacks . | . . . . . . . . . . Total Damage . | . . . . . . . . . . Kills . | . . . . . . . . . . Allies Corrupted . | . . . . . . . . . . Allies Melted . | . . . . . . . . . . Intel | -11 -10 -9 -8 -7 -6 -6 -6 -6 -5 ------- Run | Yrd Mat Mat Mat Fac Fac Low Low Zio Pro Robot Analysis Total . | . . . . . . . . . . Derelict Logs Recovered 1 | . . . . . . 1 . . . Drone Launches 2 | . . . . . . . 2 . . Drone Recoveries . | . . . . . . . . . . Exploration | -11 -10 -9 -8 -7 -6 -6 -6 -6 -5 ------------- Run | Yrd Mat Mat Mat Fac Fac Low Low Zio Pro Turns Passed 6859 | 95 1108 1816 530 334 342 1659 667 210 98 Spaces Moved 5927 | 55 546 978 406 751 1224 1413 288 184 82 Core 7 | 6 . 1 . . . . . . . Treads 1180 | 49 546 406 112 . . 67 . . . Legs 1571 | . . 565 . . . 452 288 184 82 Wheels 1 | . . 1 . . . . . . . Hover . | . . . . . . . . . . Flight 3168 | . . 5 294 751 1224 894 . . . Fastest Speed 20 | 50 160 111 23 23 20 20 110 113 113 Average Speed 85 | 148 160 139 72 23 20 94 138 113 117 Slowest Speed 500 | 160 160 500 160 99 95 260 185 113 190 Overloaded Moves . | . . . . . . . . . . Propulsion Burnouts . | . . . . . . . . . . Robots Hopped 35 | . . . 10 8 16 1 . . . Cave-ins Triggered . | . . . . . . . . . . Exploration Rate (%) 41 | 4 63 46 46 25 33 83 87 11 12 Regions Visited 9 Branch Regions 4 Pre-discovered Areas 1 | . . . . . . 1 . . . Known Exits Taken 2 | . . 1 . 1 . . . . . Unknown Exits Taken 7 | 1 1 . 1 . 1 1 1 1 . Scrap Searched 4 | . . . . . . 2 2 . . Spaces Dug . | . . . . . . . . . . Terrain Destroyed 2 | . . . 2 . . . . . . Melee . | . . . . . . . . . . Projectile 2 | . . . 2 . . . . . . AOE . | . . . . . . . . . . Terrain Rammed . | . . . . . . . . . . Walls Destroyed . | . . . . . . . . . . Machines Disabled . | . . . . . . . . . . Actions | -11 -10 -9 -8 -7 -6 -6 -6 -6 -5 --------- Run | Yrd Mat Mat Mat Fac Fac Low Low Zio Pro Total 7310 | 66 694 1283 537 898 1314 1708 542 184 84 Wait 828 | . 38 119 64 106 23 238 240 . . Move 5851 | 54 545 977 386 734 1193 1410 287 183 82 Hop 32 | . . . 9 8 14 1 . . . Pick Up 84 | 6 23 13 5 10 19 7 1 . . Fast Attach 65 | 6 8 25 6 4 3 10 3 . . Attach 35 | . . 3 5 4 10 10 1 . 2 Detach 21 | . 1 5 4 2 3 6 . . . Swap 50 | . 5 15 6 14 9 1 . . . Drop 106 | . 23 38 4 14 20 5 2 . . Fire 191 | . 50 85 48 2 . 6 . . . Melee 22 | . . . . . 2 11 8 1 . Ram 3 | . . . . . . 3 . . . Kick 3 | . . 3 . . . . . . . Crush 1 | . 1 . . . . . . . . Escape Stasis 18 | . . . . . 18 . . . . Rewire . | . . . . . . . . . . Trap . | . . . . . . . . . . Miscellaneous . | . . . . . . . . . . Route ------- -11/Scrapyard -10/Materials (discovered 3 exits: *Mat / [*Min x2]) -9/Materials (discovered 2 exits: *Mat / [*Min]) -8/Materials -7/Factory -6/Factory -6/Lower Caves -6/Lower Caves -6/Zion -5/Proximity Caves History --------- Turn | Location | Event 11 | -11/Scrapyard | Discovered new exit (range 15) 96 | -11/Scrapyard | Entered Materials 302 | -10/Materials | Build established: Mutant 324 | -10/Materials | Discovered new exit (range 16) 784 | -10/Materials | Discovered new exit (range 8) 871 | -10/Materials | Repaired Lgt. Treads 1061 | -10/Materials | Discovered new exit (range 15) 1204 | -10/Materials | Entered another Materials area 1204 | -9/Materials | Evolved 2 slots: Propulsion x2 1435 | -9/Materials | Discovered new exit (range 6) 1983 | -9/Materials | Build established: Scavenger-Mutant 2440 | -9/Materials | Discovered new exit (range 7) 2561 | -9/Materials | Repaired Signal Interpreter 3018 | -9/Materials | Identified exit to Materials 3020 | -9/Materials | Entered another Materials area 3020 | -8/Materials | Evolved 2 slots: Propulsion x2 3301 | -8/Materials | Build established: Mutant 3452 | -8/Materials | Repaired Propulsion Shielding 3548 | -8/Materials | Discovered new exit (range 10) 3550 | -8/Materials | Entered Factory 3550 | -7/Factory | Evolved 2 slots: Power x1, Utility x1 3624 | -7/Factory | Repaired Broken Hvy. Ion Engine 3651 | -7/Factory | Repaired Flight Unit 3877 | -7/Factory | Discovered new exit (range 15) 3883 | -7/Factory | Identified exit to Factory 3884 | -7/Factory | Entered another Factory area 3884 | -6/Factory | Evolved 2 slots: Propulsion x1, Utility x1 4028 | -6/Factory | Build established: Sprinter 4179 | -6/Factory | Lost 5 parts (1p2n2u) 4199 | -6/Factory | Discovered new exit (range 8) 4226 | -6/Factory | Entered Lower Caves 4236 | -6/Lower Caves | Learned location of Zion (-6) 4270 | -6/Lower Caves | Acquired the password to a Derelict Tinkerer's latest research 4274 | -6/Lower Caves | Found Prototype Special Weapon 4274 | -6/Lower Caves | Identified Molecular Deconstructor 4625 | -6/Lower Caves | Caught by Unaware searching for contraband prototypes 4629 | -6/Lower Caves | Caught by Unaware searching for contraband prototypes 4666 | -6/Lower Caves | Core integrity fell below 50% 4690 | -6/Lower Caves | Lost 11 parts (1p7n3u) 4775 | -6/Lower Caves | Learned Factory emergency access door positions 4775 | -6/Lower Caves | Learned Extension garrison access intel 4775 | -6/Lower Caves | Learned Armory garrison access intel 4908 | -6/Lower Caves | Build established: Mutant 5605 | -6/Lower Caves | Core integrity fell below 20% 5711 | -6/Lower Caves | Attracted the attention of an 0b10 checkpoint 5848 | -6/Lower Caves | Discovered new exit (range 9) 5885 | -6/Lower Caves | Entered another Lower Caves area 5932 | -6/Lower Caves | Lost 4 parts (1p3n) 6183 | -6/Lower Caves | Build established: Gladiator 6310 | -6/Lower Caves | Discovered new exit (range 80) 6552 | -6/Lower Caves | Entered Zion 6641 | -6/Zion | Attacked by Zionites 6671 | -6/Zion | Discovered new exit (range 16) 6762 | -6/Zion | Entered Proximity Caves 6791 | -5/Proximity Caves | Spotted B-75 Beast 6860 | -5/Proximity Caves | Destroyed by B-75 Beast with Magnetic Acceleration Cannon Last Messages --------------- 06586_ TKR2:WSMJQXH4:6F,ZUFHH3F7E=ILP5 06605_ System corrupted: Matter fused (-7). 06640_ Sneak attack on V3-CT5. 06640_ Destroyed Recalibrator. 06640_ V3-CT5 destroyed. 06641_ PUBLIC SERVICE ANNOUNCEMENT: Zion is under attack! Defend our home! 06642_ Acquired 23 matter. 06671_ EXIT=FOUND 06745_ System corrupted: Heat flow error (+126). LOCATION=UNKNOWN GOAL=ESCAPE 06763_ 5S-VFK(k) breaks down the debris. 06783_ TYBL 8IVHYAB8|JCAMSIB 06791_ Imp. Deuterium Engine destroyed. 06848_ Critical hit (Meltdown: +330). 06848_ VTOL Module destroyed. 06848_ Insulated Plating destroyed. 06849_ System corrupted: Substantial component data lost. 06851_ Flexi-carbon Leg destroyed. 06851_ Nuclear Core destroyed. Map ----- +----------------------------------------------------+ | ?????????????????????????????????????????????????? | | ?????????????????????????????????????????????????? | | ?????????????????????????????????????????????????? | | ?????????????????????????????????????????????????? | | ?????????????????????????????????????????????????? | | ?????????????????????????????????????????????????? | | ?????????????????????????????????????????????????? | | ?????????????????????????????????????????????????? | | ?????????????????????????????????????????????????? | | ?????????????????????????????????????????????????? | | ?????????????????????????????????????????????????? | | ?????????????????????????????????????????????????? | | ??????????????####???????????????????????????????? | | ?????????????## #####???????????????????????????? | | ????????????## #???????????????????????????? | | ???????###### ## ????????????????????????????? | | ???????# #?# ????????????????????????????? | | ????#### #?? ###?????????????????????????? | | ????# #### ##? #?????????????????????????? | | ????# ## #??## #?# #?????????????????????????? | | ????# ## #???## ### #?????????????????????????? | | ????# ## #???## ## % #?????????????????????????? | | ???## #??## ### #?????????????????????????? | | ??## #?## ##; ##????????????????????????? | | ??# ###### %## ####### #?????????????? | | ??# #???# % @ #????????? | | ??# #??## ## #????????? | | ??# #?## #; #????????? | | ??# #### #;; ## ?????????? | | ??# #### #; #??????????????? | | ??# #### ##; #?????????????? | | ??##??# ##"# #????????????? | | ?????## ""; #???????????? | | ?????# ##; ???????????? | | ?????## #### ##;; ???????????? | | ??????# ##?######; BB ### ????????????? | | ??????## ##?????#######BB #??# ????????????? | | ???????# #???????????? #???##??????????????? | | ?????### #???????????? ???????????????????? | | ????## #???????????? ???????????????????? | | ????# ##???????????? ?????????????????????? | | ????# ##?????????????????????????????????????? | | ???## ##??????????????????????????????????????? | | ???# ##???????????????????????????????????????? | | ???# ##???????????????????????????????????????? | | ???## #???????????????????????????????????????? | | ????######???????????????????????????????????????? | | ?????????????????????????????????????????????????? | | ?????????????????????????????????????????????????? | | ?????????????????????????????????????????????????? | +----------------------------------------------------+ Best States ------------- Heat Dissipation 64 Coolant Potential 65 Energy Generation 26 Energy Capacity 460 Matter Stores 500 Matter Capacity 500 Sight Range 18 Terrain Scan Density 10 Additional Mass Support 6 Base Temperature (-) 150 Armor Coverage 150 Resistance: EM 15 Propulsion Shielding 33 Weapon Shielding 33 Phase Shifting 5 Evasion (%) 66 Melee Accuracy 5 Recoil Reduction 4 Salvage Targeting 1 Item Schematics ----------------- Imp. Flight Unit | -9/Materials | Scanalyzed Robot Schematics ------------------ None Fabricated ------------ Nothing Alien Tech Used ----------------- None Achievements -------------- None Challenges ------------ None Game ------ Seed MiningMakeshiftTendrils Manual? 0 Play Time 00:58:31 Cumulative 156.1 hours Start 2024.05.07 @ 15:04:46 End 2024.05.07 @ 17:04:07 Sessions 1 Manual Loads 0 Difficulty Rogue Special Mode None Game No. 312 Rogue 312 Adventurer 0 Explorer 0 Win Type - Total 0 Types 0/0/0/0/0/0/0/0/0 Lore% 38 Gallery% 59 Achievement% 42 Wizard Run 0 Options --------- Layout 0 ASCII 0 Keyboard 1 Movement Numpad Keybinds 0 Fullscreen 2 Font 18/X11 Map View 76x50 Zoom Use 0% Tactical HUD 1 Map Filters NONE Filters NONE Steam 1 RUN: 15e6f184-a8e1-4392-8576-2470a4939b85